[Event "9e Open International de Porticcio"]
[Site "Porticcio, France"]
[Date "2024.06.29"]
[Round "1.1"]
[White "Lagarde, Maxime"]
[Black "Baroyan, Davit"]
[Result "1-0"]
[TimeControl "1h30+30s/move"]
[WhiteElo "2604"]
[BlackElo "2151"]

1. e4 {[%clk 01:30:57]} {[%emt 00:00:01]} e6 {[%clk 01:26:58]} {[%emt
00:04:02]} 2. d4 {[%clk 01:31:11]} {[%emt 00:00:16]} d5 {[%clk 01:27:14]}
{[%emt 00:00:14]} 3. Nd2 {[%clk 01:31:37]} {[%emt 00:00:04]} c5 {[%clk
01:27:24]} {[%emt 00:00:20]} 4. Ngf3 {[%clk 01:32:00]} {[%emt 00:00:07]} a6
{[%clk 01:27:25]} {[%emt 00:00:30]} 5. Bd3 {[%clk 01:31:54]} {[%emt 00:00:35]}
c4 {[%clk 01:26:41]} {[%emt 00:01:14]} 6. Be2 {[%clk 01:32:17]} {[%emt
00:00:07]} b5 {[%clk 01:26:38]} {[%emt 00:00:33]} 7. O-O {[%clk 01:19:50]}
{[%emt 00:12:56]} Bb7 {[%clk 01:14:48]} {[%emt 00:12:20]} 8. exd5 {[%clk
01:15:14]} {[%emt 00:05:06]} Qxd5 {[%clk 01:09:08]} {[%emt 00:06:10]} 9. c3
{[%clk 01:13:00]} {[%emt 00:02:44]} Nd7 {[%clk 00:56:07]} {[%emt 00:13:31]} 10.
b3 {[%clk 01:11:42]} {[%emt 00:01:48]} Rc8 {[%clk 00:49:47]} {[%emt 00:06:50]}
11. bxc4 {[%clk 01:11:28]} {[%emt 00:00:44]} bxc4 {[%clk 00:49:10]} {[%emt
00:01:08]} 12. Rb1 {[%clk 01:07:59]} {[%emt 00:03:59]} Ngf6 {[%clk 00:44:45]}
{[%emt 00:04:55]} 13. Nxc4 {[%clk 01:05:05]} {[%emt 00:03:24]} Ne4 {[%clk
00:39:06]} {[%emt 00:06:09]} 14. Ne3 {[%clk 00:59:51]} {[%emt 00:05:44]} Qxa2
{[%clk 00:27:21]} {[%emt 00:12:16]} 15. Rb2 {[%clk 00:59:09]} {[%emt 00:01:12]}
Qa1 {[%clk 00:27:12]} {[%emt 00:00:39]} 16. Rxb7 {[%clk 00:58:22]} {[%emt
00:01:17]} Nxc3 {[%clk 00:27:27]} {[%emt 00:00:14]} 17. Bb2 {[%clk 00:57:28]}
{[%emt 00:01:24]} Nxd1 {[%clk 00:24:40]} {[%emt 00:03:17]} 18. Bxa1 {[%clk
00:57:51]} {[%emt 00:00:07]} Nxe3 {[%clk 00:25:04]} {[%emt 00:00:06]} 19. fxe3
{[%clk 00:58:17]} {[%emt 00:00:05]} 1-0

[Event "9e Open International de Porticcio"]
[Site "Porticcio, France"]
[Date "2024.06.29"]
[Round "1.2"]
[White "Rosol, Philip"]
[Black "Fedorchuk, Sergey A."]
[Result "0-1"]
[TimeControl "1h30+30s/move"]
[WhiteElo "2150"]
[BlackElo "2546"]

1. d4 {[%clk 01:30:57]} {[%emt 00:00:02]} Nf6 {[%clk 01:30:47]} {[%emt
00:00:13]} 2. c4 {[%clk 01:31:20]} {[%emt 00:00:07]} e6 {[%clk 01:31:08]}
{[%emt 00:00:09]} 3. Nc3 {[%clk 01:31:36]} {[%emt 00:00:14]} Bb4 {[%clk
01:31:22]} {[%emt 00:00:16]} 4. f3 {[%clk 01:31:55]} {[%emt 00:00:11]} Ba5
{[%clk 01:22:31]} {[%emt 00:09:21]} 5. e4 {[%clk 01:30:56]} {[%emt 00:01:28]}
d5 {[%clk 01:22:48]} {[%emt 00:00:13]} 6. e5 {[%clk 01:28:42]} {[%emt
00:02:46]} Nfd7 {[%clk 01:23:06]} {[%emt 00:00:10]} 7. f4 {[%clk 01:23:33]}
{[%emt 00:05:39]} c5 {[%clk 01:21:41]} {[%emt 00:01:56]} 8. Nf3 {[%clk
01:17:30]} {[%emt 00:06:33]} Nc6 {[%clk 01:10:04]} {[%emt 00:12:07]} 9. Bd2
{[%clk 01:10:29]} {[%emt 00:07:31]} cxd4 {[%clk 01:00:18]} {[%emt 00:10:15]} 10.
Nb5 {[%clk 01:08:11]} {[%emt 00:02:48]} O-O {[%clk 01:00:30]} {[%emt 00:00:18]}
11. Bd3 {[%clk 00:42:29]} {[%emt 00:26:13]} Nc5 {[%clk 00:38:57]} {[%emt
00:22:03]} 12. Bxh7+ {[%clk 00:30:48]} {[%emt 00:12:11]} Kxh7 {[%clk 00:39:03]}
{[%emt 00:00:24]} 13. Ng5+ {[%clk 00:31:14]} {[%emt 00:00:05]} Kg6 {[%clk
00:38:49]} {[%emt 00:00:43]} 14. Qg4 {[%clk 00:22:50]} {[%emt 00:08:53]} Bxd2+
{[%clk 00:36:57]} {[%emt 00:02:23]} 15. Kxd2 {[%clk 00:20:55]} {[%emt
00:02:26]} Nxe5 {[%clk 00:37:15]} {[%emt 00:00:11]} 16. Qg3 {[%clk 00:21:04]}
{[%emt 00:00:22]} Nxc4+ {[%clk 00:37:04]} {[%emt 00:00:40]} 17. Kc1 {[%clk
00:20:23]} {[%emt 00:01:11]} Kf6 {[%clk 00:36:12]} {[%emt 00:01:23]} 18. Nh7+
{[%clk 00:18:32]} {[%emt 00:02:21]} Ke7 {[%clk 00:36:34]} {[%emt 00:00:08]} 19.
Qh4+ {[%clk 00:13:00]} {[%emt 00:06:01]} f6 {[%clk 00:29:31]} {[%emt 00:07:33]}
20. Nxf8 {[%clk 00:13:18]} {[%emt 00:00:13]} Qxf8 {[%clk 00:29:55]} {[%emt
00:00:05]} 21. b3 {[%clk 00:11:58]} {[%emt 00:01:50]} Nd6 {[%clk 00:26:45]}
{[%emt 00:03:39]} 22. Nxd4 {[%clk 00:10:35]} {[%emt 00:01:54]} Bd7 {[%clk
00:27:08]} {[%emt 00:00:07]} 23. Rd1 {[%clk 00:10:17]} {[%emt 00:00:48]} Qh8
{[%clk 00:26:24]} {[%emt 00:01:14]} 24. Qg3 {[%clk 00:09:51]} {[%emt 00:00:57]}
Nce4 {[%clk 00:26:22]} {[%emt 00:00:31]} 25. Qg6 {[%clk 00:10:01]} {[%emt
00:00:19]} Qc8+ {[%clk 00:24:22]} {[%emt 00:02:31]} 26. Kb2 {[%clk 00:09:13]}
{[%emt 00:01:18]} Qc3+ {[%clk 00:24:39]} {[%emt 00:00:14]} 27. Ka3 {[%clk
00:09:28]} {[%emt 00:00:15]} Nc4# {[%clk 00:24:54]} {[%emt 00:00:15]} 0-1

[Event "9e Open International de Porticcio"]
[Site "Porticcio, France"]
[Date "2024.06.29"]
[Round "1.3"]
[White "Hamdouchi, Hicham"]
[Black "Mannion, Stephen R"]
[Result "1-0"]
[TimeControl "1h30+30s/move"]
[WhiteElo "2527"]
[BlackElo "2146"]

1. e4 {[%clk 01:30:57]} {[%emt 00:00:03]} e5 {[%clk 01:29:51]} {[%emt
00:01:09]} 2. Nf3 {[%clk 01:30:49]} {[%emt 00:00:37]} Nc6 {[%clk 01:30:10]}
{[%emt 00:00:12]} 3. Bb5 {[%clk 01:31:07]} {[%emt 00:00:12]} a6 {[%clk
01:30:33]} {[%emt 00:00:07]} 4. Ba4 {[%clk 01:31:32]} {[%emt 00:00:05]} Nf6
{[%clk 01:30:58]} {[%emt 00:00:05]} 5. O-O {[%clk 01:31:55]} {[%emt 00:00:06]}
d6 {[%clk 01:31:20]} {[%emt 00:00:08]} 6. c4 {[%clk 01:28:43]} {[%emt
00:03:43]} Bg4 {[%clk 01:29:45]} {[%emt 00:01:11]} 7. h3 {[%clk 01:28:44]} Bxf3
{[%clk 01:29:45]} 8. Qxf3 {[%clk 01:28:44]} Nd7 {[%clk 01:29:45]} 9. Bxc6
{[%clk 01:28:44]} bxc6 {[%clk 01:29:45]} 10. Qd1 {[%clk 01:28:44]} Nc5 {[%clk
01:29:45]} 11. d4 {[%clk 01:28:44]} exd4 {[%clk 01:29:45]} 12. Qxd4 {[%clk
01:28:44]} Ne6 {[%clk 01:29:45]} 13. Qd1 {[%clk 01:28:44]} g6 {[%clk 01:29:45]}
14. f4 {[%clk 01:28:44]} Bg7 {[%clk 01:29:45]} 15. f5 {[%clk 01:28:44]} Nc5
{[%clk 01:29:45]} 16. Qf3 {[%clk 01:28:44]} O-O {[%clk 01:29:45]} 17. f6 {[%clk
01:28:44]} Bh8 {[%clk 01:29:45]} 18. g4 {[%clk 01:28:44]} Re8 {[%clk 01:29:45]}
19. Nc3 {[%clk 01:28:44]} Qc8 {[%clk 01:29:45]} 20. b3 {[%clk 01:28:44]} Qe6
{[%clk 01:29:45]} 21. g5 {[%clk 01:28:44]} Nxe4 {[%clk 01:29:45]} 22. Nxe4
{[%clk 01:28:44]} Qxe4 {[%clk 01:29:45]} 23. Bf4 {[%clk 01:28:44]} h6 {[%clk
01:29:45]} 24. h4 {[%clk 01:28:44]} Re6 {[%clk 01:29:45]} 25. Qxe4 {[%clk
01:28:44]} Rxe4 {[%clk 01:29:45]} 26. Rae1 {[%clk 01:28:44]} Rae8 {[%clk
01:29:45]} 27. Bg3 {[%clk 01:28:44]} Kf8 {[%clk 01:29:45]} 28. Kf2 {[%clk
01:28:44]} c5 {[%clk 01:29:45]} 29. Rxe4 {[%clk 01:28:44]} Rxe4 {[%clk
01:29:45]} 30. Kf3 {[%clk 01:28:44]} Re6 {[%clk 01:29:45]} 31. Re1 {[%clk
01:28:44]} hxg5 {[%clk 01:29:45]} 32. hxg5 {[%clk 01:28:44]} Ke8 {[%clk
01:29:45]} 33. Rxe6+ {[%clk 01:28:44]} fxe6 {[%clk 01:29:45]} 34. Be1 {[%clk
01:28:44]} Kd7 {[%clk 01:29:45]} 35. Ba5 {[%clk 01:28:44]} c6 {[%clk 01:29:45]}
36. Kg4 {[%clk 01:28:44]} e5 {[%clk 01:29:45]} 37. Bb6 {[%clk 01:28:44]} Ke8
{[%clk 01:29:45]} 38. Kf3 {[%clk 01:28:44]} Kd7 {[%clk 01:29:45]} 39. Ke4
{[%clk 01:28:44]} Ke8 {[%clk 01:29:45]} 40. Bc7 {[%clk 01:28:44]} Kd7 {[%clk
01:29:45]} 41. Ba5 {[%clk 01:28:44]} Ke6 {[%clk 01:29:45]} 42. Bd8 {[%clk
01:28:44]} d5+ {[%clk 01:29:45]} 43. Ke3 {[%clk 01:28:44]} Kf7 {[%clk
01:29:45]} 1-0

[Event "9e Open International de Porticcio"]
[Site "Porticcio, France"]
[Date "2024.06.29"]
[Round "1.4"]
[White "Martin, Nils"]
[Black "Clarke, Brandon G I"]
[Result "0-1"]
[TimeControl "1h30+30s/move"]
[WhiteElo "2138"]
[BlackElo "2498"]

1. e4 {[%clk 01:30:53]} {[%emt 00:00:06]} c5 {[%clk 01:30:58]} {[%emt
00:00:03]} 2. Nf3 {[%clk 01:31:15]} {[%emt 00:00:07]} g6 {[%clk 01:30:48]}
{[%emt 00:00:40]} 3. d4 {[%clk 01:31:38]} {[%emt 00:00:07]} cxd4 {[%clk
01:31:10]} {[%emt 00:00:08]} 4. Qxd4 {[%clk 01:32:04]} {[%emt 00:00:04]} Nf6
{[%clk 01:31:26]} {[%emt 00:00:14]} 5. e5 {[%clk 01:32:30]} {[%emt 00:00:04]}
Nc6 {[%clk 01:31:44]} {[%emt 00:00:12]} 6. Qa4 {[%clk 01:32:57]} {[%emt
00:00:04]} Nd5 {[%clk 01:31:45]} {[%emt 00:00:28]} 7. Qb3 {[%clk 01:33:15]}
{[%emt 00:00:12]} e6 {[%clk 01:27:28]} {[%emt 00:04:46]} 8. Bg5 {[%clk
01:24:17]} {[%emt 00:09:27]} Qa5+ {[%clk 01:26:01]} {[%emt 00:01:57]} 9. Nbd2
{[%clk 01:22:56]} {[%emt 00:01:51]} h6 {[%clk 01:08:03]} {[%emt 00:18:28]} 10.
c4 {[%clk 01:16:27]} {[%emt 00:06:59]} hxg5 {[%clk 01:06:28]} {[%emt 00:02:05]}
11. cxd5 {[%clk 01:16:50]} {[%emt 00:00:07]} g4 {[%clk 00:37:09]} {[%emt
00:29:49]} 12. dxc6 {[%clk 01:13:17]} {[%emt 00:04:03]} bxc6 {[%clk 00:34:14]}
{[%emt 00:03:25]} 13. Ng5 {[%clk 01:03:27]} {[%emt 00:10:19]} Qxe5+ {[%clk
00:28:25]} {[%emt 00:06:20]} 14. Nge4 {[%clk 01:03:07]} {[%emt 00:00:49]} Rb8
{[%clk 00:20:50]} {[%emt 00:08:06]} 15. Qc3 {[%clk 01:01:34]} {[%emt 00:02:03]}
Qxc3 {[%clk 00:16:06]} {[%emt 00:05:13]} 16. bxc3 {[%clk 00:59:33]} {[%emt
00:02:30]} f5 {[%clk 00:14:27]} {[%emt 00:02:10]} 17. Ng3 {[%clk 00:58:35]}
{[%emt 00:01:27]} Rb2 {[%clk 00:11:27]} {[%emt 00:03:31]} 18. Bc4 {[%clk
00:57:17]} {[%emt 00:01:48]} Bc5 {[%clk 00:05:29]} {[%emt 00:06:28]} 19. Ngf1
{[%clk 00:52:30]} {[%emt 00:05:17]} Rc2 {[%clk 00:05:03]} {[%emt 00:00:56]} 20.
Ne3 {[%clk 00:41:05]} {[%emt 00:11:54]} Rxc3 {[%clk 00:04:38]} {[%emt
00:00:56]} 21. Ke2 {[%clk 00:40:48]} {[%emt 00:00:46]} Bxe3 {[%clk 00:02:39]}
{[%emt 00:02:28]} 22. fxe3 {[%clk 00:40:51]} {[%emt 00:00:28]} Rxc4 {[%clk
00:02:46]} {[%emt 00:00:24]} 23. Nxc4 {[%clk 00:40:49]} {[%emt 00:00:32]} Ba6
{[%clk 00:03:14]} {[%emt 00:00:01]} 24. Kd3 {[%clk 00:40:21]} {[%emt 00:00:57]}
d5 {[%clk 00:03:35]} {[%emt 00:00:09]} 25. Kd4 {[%clk 00:40:24]} {[%emt
00:00:26]} dxc4 {[%clk 00:01:15]} {[%emt 00:02:50]} 26. Kc5 {[%clk 00:37:10]}
{[%emt 00:03:44]} Ke7 {[%clk 00:01:17]} {[%emt 00:00:28]} 27. Rad1 {[%clk
00:35:42]} {[%emt 00:01:58]} Bb5 {[%clk 00:01:02]} {[%emt 00:00:46]} 28. Ra1
{[%clk 00:33:15]} {[%emt 00:02:57]} Ba4 {[%clk 00:00:47]} {[%emt 00:00:45]} 29.
Rac1 {[%clk 00:31:53]} {[%emt 00:01:52]} Bb5 {[%clk 00:00:34]} {[%emt
00:00:43]} 30. Ra1 {[%clk 00:32:06]} {[%emt 00:00:17]} Ba4 {[%clk 00:01:03]}
{[%emt 00:00:01]} 31. Rac1 {[%clk 00:32:27]} {[%emt 00:00:09]} Rd8 {[%clk
00:00:32]} {[%emt 00:01:01]} 32. Rxc4 {[%clk 00:31:05]} {[%emt 00:01:51]} Rd5+
{[%clk 00:00:58]} {[%emt 00:00:04]} 33. Kb4 {[%clk 00:31:34]} {[%emt 00:00:02]}
Bb5 {[%clk 00:01:24]} {[%emt 00:00:04]} 34. Rc3 {[%clk 00:26:11]} {[%emt
00:05:52]} Rd2 {[%clk 00:01:04]} {[%emt 00:00:51]} 35. a4 {[%clk 00:25:45]}
{[%emt 00:00:57]} a5+ {[%clk 00:01:17]} {[%emt 00:00:17]} 36. Ka3 {[%clk
00:24:49]} {[%emt 00:01:25]} Bd3 {[%clk 00:01:37]} {[%emt 00:00:10]} 37. Rxc6
{[%clk 00:24:48]} {[%emt 00:00:30]} Be4 {[%clk 00:01:44]} {[%emt 00:00:24]} 38.
Rc5 {[%clk 00:24:08]} {[%emt 00:01:10]} Rd3+ {[%clk 00:01:36]} {[%emt
00:00:38]} 39. Kb2 {[%clk 00:24:30]} {[%emt 00:00:07]} Rxe3 {[%clk 00:01:37]}
{[%emt 00:00:30]} 40. Rxa5 {[%clk 00:24:47]} {[%emt 00:00:13]} Re2+ {[%clk
00:01:47]} {[%emt 00:00:20]} 41. Kb3 {[%clk 00:23:18]} {[%emt 00:01:58]} Rxg2
{[%clk 00:01:25]} {[%emt 00:00:53]} 42. Re5 {[%clk 00:23:23]} {[%emt 00:00:24]}
Re2 {[%clk 00:00:38]} {[%emt 00:01:19]} 43. a5 {[%clk 00:23:21]} {[%emt
00:00:31]} Bc2+ {[%clk 00:00:50]} {[%emt 00:00:17]} 0-1

[Event "9e Open International de Porticcio"]
[Site "Porticcio, France"]
[Date "2024.06.29"]
[Round "1.5"]
[White "Bailet, Pierre"]
[Black "Grigorian, Roudolph"]
[Result "1-0"]
[TimeControl "1h30+30s/move"]
[WhiteElo "2491"]
[BlackElo "2116"]

1. e4 {[%clk 01:30:43]} {[%emt 00:00:15]} c6 {[%clk 01:30:43]} {[%emt
00:00:18]} 2. d4 {[%clk 01:30:25]} {[%emt 00:00:48]} d5 {[%clk 01:31:03]}
{[%emt 00:00:10]} 3. e5 {[%clk 01:30:38]} {[%emt 00:00:17]} Bf5 {[%clk
01:31:18]} {[%emt 00:00:15]} 4. Nf3 {[%clk 01:30:19]} {[%emt 00:00:48]} e6
{[%clk 01:31:27]} {[%emt 00:00:21]} 5. Be2 {[%clk 01:30:37]} {[%emt 00:00:11]}
c5 {[%clk 01:31:16]} {[%emt 00:00:40]} 6. O-O {[%clk 01:28:33]} {[%emt
00:02:36]} Nc6 {[%clk 01:30:14]} {[%emt 00:01:32]} 7. c3 {[%clk 01:26:59]}
{[%emt 00:02:04]} Bg4 {[%clk 01:13:52]} {[%emt 00:16:51]} 8. Nbd2 {[%clk
01:16:00]} {[%emt 00:11:29]} cxd4 {[%clk 01:13:33]} {[%emt 00:00:50]} 9. cxd4
{[%clk 01:14:38]} {[%emt 00:01:52]} Qb6 {[%clk 01:11:08]} {[%emt 00:02:54]} 10.
h3 {[%clk 01:14:16]} {[%emt 00:00:52]} Bh5 {[%clk 01:11:09]} {[%emt 00:00:29]}
11. Nb3 {[%clk 01:14:04]} {[%emt 00:00:42]} Nge7 {[%clk 01:08:52]} {[%emt
00:02:47]} 12. a4 {[%clk 01:08:28]} {[%emt 00:06:06]} a5 {[%clk 01:03:50]}
{[%emt 00:05:31]} 13. Bb5 {[%clk 01:01:14]} {[%emt 00:07:44]} Bxf3 {[%clk
00:56:56]} {[%emt 00:07:25]} 14. Qxf3 {[%clk 01:01:04]} {[%emt 00:00:39]} Nf5
{[%clk 00:57:18]} {[%emt 00:00:09]} 15. Qd3 {[%clk 00:56:41]} {[%emt 00:04:52]}
Bb4 {[%clk 00:54:12]} {[%emt 00:03:31]} 16. g4 {[%clk 00:53:33]} {[%emt
00:03:42]} Nfe7 {[%clk 00:53:14]} {[%emt 00:01:29]} 17. Be3 {[%clk 00:53:54]}
{[%emt 00:00:09]} h5 {[%clk 00:47:27]} {[%emt 00:06:18]} 18. Kg2 {[%clk
00:53:39]} {[%emt 00:00:43]} hxg4 {[%clk 00:39:34]} {[%emt 00:08:24]} 19. hxg4
{[%clk 00:53:58]} {[%emt 00:00:11]} f5 {[%clk 00:39:18]} {[%emt 00:00:47]} 20.
Bg5 {[%clk 00:47:37]} {[%emt 00:06:50]} fxg4 {[%clk 00:33:44]} {[%emt
00:06:05]} 21. Bxe7 {[%clk 00:47:04]} {[%emt 00:01:02]} Bxe7 {[%clk 00:33:57]}
{[%emt 00:00:17]} 22. Qg6+ {[%clk 00:43:20]} {[%emt 00:04:13]} Kd7 {[%clk
00:34:20]} {[%emt 00:00:08]} 23. Rh1 {[%clk 00:40:00]} {[%emt 00:03:49]} Rh3
{[%clk 00:30:05]} {[%emt 00:04:45]} 24. Rxh3 {[%clk 00:33:35]} {[%emt
00:06:56]} gxh3+ {[%clk 00:30:29]} {[%emt 00:00:07]} 25. Kxh3 {[%clk 00:32:40]}
{[%emt 00:01:24]} Rf8 {[%clk 00:30:10]} {[%emt 00:00:49]} 26. Kg3 {[%clk
00:28:56]} {[%emt 00:04:14]} Kc8 {[%clk 00:09:33]} {[%emt 00:21:08]} 27. Qxe6+
{[%clk 00:26:10]} {[%emt 00:03:15]} Kb8 {[%clk 00:10:00]} {[%emt 00:00:03]} 28.
f4 {[%clk 00:21:09]} {[%emt 00:05:30]} Ka7 {[%clk 00:06:40]} {[%emt 00:03:51]}
29. Rh1 {[%clk 00:19:25]} {[%emt 00:02:13]} Qc7 {[%clk 00:03:41]} {[%emt
00:03:29]} 30. Bxc6 {[%clk 00:18:44]} {[%emt 00:01:11]} bxc6 {[%clk 00:02:56]}
{[%emt 00:01:14]} 31. Nxa5 {[%clk 00:17:59]} {[%emt 00:01:15]} Kb6 {[%clk
00:02:13]} {[%emt 00:01:13]} 32. Nb3 {[%clk 00:14:07]} {[%emt 00:04:23]} Ra8
{[%clk 00:02:37]} {[%emt 00:00:06]} 33. a5+ {[%clk 00:13:32]} {[%emt 00:01:05]}
Kb5 {[%clk 00:02:54]} {[%emt 00:00:12]} 34. Qg6 {[%clk 00:13:03]} {[%emt
00:00:58]} Ka6 {[%clk 00:01:43]} {[%emt 00:01:40]} 35. Rc1 {[%clk 00:11:23]}
{[%emt 00:02:11]} Kb7 {[%clk 00:01:56]} {[%emt 00:00:19]} 36. f5 {[%clk
00:10:20]} {[%emt 00:01:33]} Rh8 {[%clk 00:02:01]} {[%emt 00:00:24]} 37. a6+
{[%clk 00:09:29]} {[%emt 00:01:21]} Kb6 {[%clk 00:02:22]} {[%emt 00:00:08]} 38.
a7 {[%clk 00:09:14]} {[%emt 00:00:46]} 1-0

[Event "9e Open International de Porticcio"]
[Site "Porticcio, France"]
[Date "2024.06.29"]
[Round "1.6"]
[White "Large, Laurent"]
[Black "Nevednichy, Vladislav"]
[Result "1/2-1/2"]
[TimeControl "1h30+30s/move"]
[WhiteElo "2115"]
[BlackElo "2471"]

1. Nf3 {[%clk 00:59:20]} {[%emt 00:31:39]} c5 {[%clk 01:27:34]} {[%emt
00:03:27]} 2. g3 {[%clk 00:58:52]} {[%emt 00:00:57]} Nc6 {[%clk 01:27:22]}
{[%emt 00:00:43]} 3. Bg2 {[%clk 00:58:58]} {[%emt 00:00:24]} e5 {[%clk
01:27:41]} {[%emt 00:00:11]} 4. d3 {[%clk 00:59:19]} {[%emt 00:00:09]} g6
{[%clk 01:28:01]} {[%emt 00:00:10]} 5. c4 {[%clk 00:58:45]} {[%emt 00:01:03]}
Bg7 {[%clk 01:28:27]} {[%emt 00:00:04]} 6. Nc3 {[%clk 00:59:12]} {[%emt
00:00:04]} Nge7 {[%clk 01:28:52]} {[%emt 00:00:05]} 7. O-O {[%clk 00:57:23]}
{[%emt 00:02:18]} O-O {[%clk 01:28:54]} {[%emt 00:00:28]} 8. Rb1 {[%clk
00:54:36]} {[%emt 00:03:18]} d6 {[%clk 01:25:35]} {[%emt 00:03:48]} 9. a3
{[%clk 00:54:43]} {[%emt 00:00:24]} a5 {[%clk 01:23:31]} {[%emt 00:02:34]} 10.
Bd2 {[%clk 00:51:04]} {[%emt 00:04:08]} h6 {[%clk 01:22:54]} {[%emt 00:01:06]}
11. Nb5 {[%clk 00:48:12]} {[%emt 00:03:23]} Be6 {[%clk 01:09:25]} {[%emt
00:13:59]} 12. e3 {[%clk 00:41:48]} {[%emt 00:06:54]} e4 {[%clk 01:07:32]}
{[%emt 00:02:23]} 13. Ne1 {[%clk 00:42:07]} {[%emt 00:00:11]} exd3 {[%clk
01:05:35]} {[%emt 00:02:27]} 14. b3 {[%clk 00:42:26]} {[%emt 00:00:10]} d5
{[%clk 01:00:22]} {[%emt 00:05:43]} 15. cxd5 {[%clk 00:27:50]} {[%emt
00:15:06]} Bxd5 {[%clk 00:52:00]} {[%emt 00:08:52]} 16. Bxd5 {[%clk 00:24:22]}
{[%emt 00:03:58]} Nxd5 {[%clk 00:52:26]} {[%emt 00:00:04]} 17. Nxd3 {[%clk
00:24:33]} {[%emt 00:00:19]} b6 {[%clk 00:52:42]} {[%emt 00:00:15]} 18. Nb2
{[%clk 00:21:34]} {[%emt 00:03:28]} Nc7 {[%clk 00:51:13]} {[%emt 00:01:59]} 19.
Nxc7 {[%clk 00:21:36]} {[%emt 00:00:28]} Qxc7 {[%clk 00:51:40]} {[%emt
00:00:03]} 20. Qc2 {[%clk 00:21:22]} {[%emt 00:00:43]} Rad8 {[%clk 00:48:06]}
{[%emt 00:04:04]} 21. Bc3 {[%clk 00:18:02]} {[%emt 00:03:50]} h5 {[%clk
00:39:21]} {[%emt 00:09:15]} 22. Bxg7 {[%clk 00:17:49]} {[%emt 00:00:44]} Kxg7
{[%clk 00:39:49]} {[%emt 00:00:03]} 23. h4 {[%clk 00:17:56]} {[%emt 00:00:22]}
Ne5 {[%clk 00:40:09]} {[%emt 00:00:10]} 24. Rfd1 {[%clk 00:16:10]} {[%emt
00:02:15]} Nf3+ {[%clk 00:38:11]} {[%emt 00:02:29]} 25. Kf1 {[%clk 00:15:29]}
{[%emt 00:01:12]} Qc8 {[%clk 00:37:03]} {[%emt 00:01:37]} 26. Rxd8 {[%clk
00:08:47]} {[%emt 00:07:12]} Rxd8 {[%clk 00:36:42]} {[%emt 00:00:52]} 27. Rd1
{[%clk 00:08:56]} {[%emt 00:00:22]} Re8 {[%clk 00:36:50]} {[%emt 00:00:22]} 28.
Kg2 {[%clk 00:08:34]} {[%emt 00:00:52]} Qg4 {[%clk 00:34:42]} {[%emt 00:02:37]}
29. Rh1 {[%clk 00:08:44]} {[%emt 00:00:20]} Ne5 {[%clk 00:30:46]} {[%emt
00:04:27]} 30. Re1 {[%clk 00:04:57]} {[%emt 00:04:16]} Rd8 {[%clk 00:25:41]}
{[%emt 00:05:36]} 31. Nc4 {[%clk 00:04:24]} {[%emt 00:01:03]} Nf3 {[%clk
00:19:30]} {[%emt 00:06:41]} 32. Rh1 {[%clk 00:04:18]} {[%emt 00:00:35]} b5
{[%clk 00:19:49]} {[%emt 00:00:12]} 33. Nxa5 {[%clk 00:04:05]} {[%emt
00:00:43]} Rd2 {[%clk 00:17:44]} {[%emt 00:02:35]} 34. Qc3+ {[%clk 00:04:27]}
{[%emt 00:00:08]} f6 {[%clk 00:17:17]} {[%emt 00:00:58]} 35. e4 {[%clk
00:03:55]} {[%emt 00:01:02]} Nd4 {[%clk 00:09:20]} {[%emt 00:08:26]} 36. Qxd2
{[%clk 00:03:06]} {[%emt 00:01:18]} Qxe4+ {[%clk 00:09:47]} {[%emt 00:00:03]}
37. f3 {[%clk 00:02:46]} {[%emt 00:00:50]} Nxf3 {[%clk 00:09:29]} {[%emt
00:00:48]} 38. Qd7+ {[%clk 00:03:08]} {[%emt 00:00:08]} Kh6 {[%clk 00:09:56]}
{[%emt 00:00:03]} 39. Kf2 {[%clk 00:03:08]} {[%emt 00:00:30]} Nd4 {[%clk
00:09:56]} {[%emt 00:00:31]} 40. Re1 {[%clk 00:01:59]} {[%emt 00:01:38]} Qf3+
{[%clk 00:09:50]} {[%emt 00:00:36]} 41. Kg1 {[%clk 00:02:19]} {[%emt 00:00:10]}
Qxg3+ {[%clk 00:10:06]} {[%emt 00:00:14]} 42. Kf1 {[%clk 00:02:38]} {[%emt
00:00:10]} Qd3+ {[%clk 00:09:42]} {[%emt 00:00:54]} 43. Kf2 {[%clk 00:02:48]}
{[%emt 00:00:21]} Qd2+ {[%clk 00:07:04]} {[%emt 00:03:08]} 44. Kf1 {[%clk
00:03:12]} {[%emt 00:00:05]} Qf4+ {[%clk 00:07:28]} {[%emt 00:00:06]} 45. Kg2
{[%clk 00:03:16]} {[%emt 00:00:26]} Qf3+ {[%clk 00:06:25]} {[%emt 00:01:33]} 46.
Kg1 {[%clk 00:03:25]} {[%emt 00:00:20]} Qg3+ {[%clk 00:05:18]} {[%emt
00:01:37]} 47. Kf1 {[%clk 00:03:48]} {[%emt 00:00:08]} Qxh4 {[%clk 00:04:22]}
{[%emt 00:01:26]} 48. Re7 {[%clk 00:04:03]} {[%emt 00:00:14]} Qf4+ {[%clk
00:04:28]} {[%emt 00:00:25]} 49. Ke1 {[%clk 00:04:04]} {[%emt 00:00:29]} Qc1+
{[%clk 00:04:43]} {[%emt 00:00:15]} 50. Kf2 {[%clk 00:04:22]} {[%emt 00:00:12]}
Qd2+ {[%clk 00:04:56]} {[%emt 00:00:16]} 51. Kf1 {[%clk 00:04:24]} {[%emt
00:00:28]} Qd1+ {[%clk 00:04:46]} {[%emt 00:00:40]} 52. Kf2 {[%clk 00:04:18]}
{[%emt 00:00:36]} Qf3+ {[%clk 00:05:05]} {[%emt 00:00:11]} 53. Ke1 {[%clk
00:04:41]} {[%emt 00:00:08]} Kg5 {[%clk 00:05:11]} {[%emt 00:00:23]} 54. Nb7
{[%clk 00:02:55]} {[%emt 00:02:18]} h4 {[%clk 00:04:31]} {[%emt 00:01:09]} 55.
Nd8 {[%clk 00:03:15]} {[%emt 00:00:11]} Qc3+ {[%clk 00:04:11]} {[%emt
00:00:49]} 56. Kf2 {[%clk 00:03:35]} {[%emt 00:00:09]} Qg3+ {[%clk 00:04:01]}
{[%emt 00:00:41]} 57. Kf1 {[%clk 00:03:59]} {[%emt 00:00:06]} Qf3+ {[%clk
00:03:06]} {[%emt 00:01:25]} 58. Ke1 {[%clk 00:04:24]} {[%emt 00:00:06]} Qh1+
{[%clk 00:02:50]} {[%emt 00:00:46]} 59. Kf2 {[%clk 00:04:42]} {[%emt 00:00:12]}
Qh2+ {[%clk 00:03:13]} {[%emt 00:00:06]} 60. Kf1 {[%clk 00:05:05]} {[%emt
00:00:07]} Qf4+ {[%clk 00:02:59]} {[%emt 00:00:44]} 61. Ke1 {[%clk 00:05:31]}
{[%emt 00:00:04]} Qg3+ {[%clk 00:02:46]} {[%emt 00:00:43]} 62. Kf1 {[%clk
00:05:50]} {[%emt 00:00:12]} Qf3+ {[%clk 00:00:42]} {[%emt 00:02:34]} 63. Ke1
{[%clk 00:06:15]} {[%emt 00:00:04]} Qc3+ {[%clk 00:00:43]} {[%emt 00:00:28]} 64.
Kf2 {[%clk 00:06:20]} {[%emt 00:00:27]} Qd2+ {[%clk 00:01:00]} {[%emt
00:00:13]} 65. Kf1 {[%clk 00:06:41]} {[%emt 00:00:08]} Qf4+ {[%clk 00:01:10]}
{[%emt 00:00:20]} 66. Ke1 {[%clk 00:07:06]} {[%emt 00:00:05]} Qc1+ {[%clk
00:00:48]} {[%emt 00:00:51]} 67. Kf2 Qf4+ {[%clk 00:00:48]} 68. Ke1 Qc1+ {[%clk
00:00:48]} 1/2-1/2